[Event "Early-Titled-Tuesday-Blitz-October-17-2023"]
[Site "Chess.com"]
[Date "2023.10.17"]
[Round "3"]
[White "adotand"]
[Black "TregubovP"]
[Result "1-0"]
[WhiteElo "2862"]
[BlackElo "2597"]
[TimeControl "180+1"]
[EndTime "8:30:16 PDT"]
[Termination "adotand won by checkmate"]

1. Nf3 {[%clk 0:02:59]} 1... d5 {[%clk 0:02:58.3]} 2. e3 {[%clk 0:02:59.3]} 2...
Nf6 {[%clk 0:02:57.9]} 3. c4 {[%clk 0:02:58.7]} 3... e6 {[%clk 0:02:57.1]} 4.
Nc3 {[%clk 0:02:58.3]} 4... c5 {[%clk 0:02:57]} 5. cxd5 {[%clk 0:02:57.3]} 5...
exd5 {[%clk 0:02:57]} 6. d4 {[%clk 0:02:58]} 6... Nc6 {[%clk 0:02:57.5]} 7. h3
{[%clk 0:02:54.3]} 7... a6 {[%clk 0:02:54.4]} 8. Bd3 {[%clk 0:02:53.7]} 8... c4
{[%clk 0:02:51.1]} 9. Bc2 {[%clk 0:02:53.7]} 9... b5 {[%clk 0:02:43.9]} 10. a3
{[%clk 0:02:53.8]} 10... Be7 {[%clk 0:02:37.6]} 11. O-O {[%clk 0:02:52.8]} 11...
O-O {[%clk 0:02:37.8]} 12. Ne5 {[%clk 0:02:51.7]} 12... Bb7 {[%clk 0:02:36.4]}
13. f4 {[%clk 0:02:51.8]} 13... b4 {[%clk 0:02:04.4]} 14. axb4 {[%clk
0:02:43.4]} 14... Nxb4 {[%clk 0:02:04.6]} 15. Bb1 {[%clk 0:02:43.8]} 15... Rc8
{[%clk 0:01:48.4]} 16. Qf3 {[%clk 0:02:41.5]} 16... Qb6 {[%clk 0:01:39.1]} 17.
g4 {[%clk 0:02:14]} 17... Nd3 {[%clk 0:01:00.6]} 18. Nxd3 {[%clk 0:02:10.9]}
18... cxd3 {[%clk 0:01:00.9]} 19. Bxd3 {[%clk 0:02:11.6]} 19... Rfe8 {[%clk
0:00:55.1]} 20. Bf5 {[%clk 0:01:52.5]} 20... Rcd8 {[%clk 0:00:49.7]} 21. Na4
{[%clk 0:01:43.6]} 21... Qb3 {[%clk 0:00:44.6]} 22. Qd1 {[%clk 0:01:41.5]} 22...
Qb5 {[%clk 0:00:35]} 23. Bd3 {[%clk 0:01:37.8]} 23... Qc6 {[%clk 0:00:31.4]} 24.
Bd2 {[%clk 0:01:37]} 24... Ne4 {[%clk 0:00:30.9]} 25. Be1 {[%clk 0:01:28.2]}
25... Qh6 {[%clk 0:00:26.4]} 26. Kg2 {[%clk 0:01:28.5]} 26... Bc6 {[%clk
0:00:17.2]} 27. Nc3 {[%clk 0:01:25.9]} 27... Bb7 {[%clk 0:00:12.8]} 28. Nxe4
{[%clk 0:01:23.5]} 28... dxe4 {[%clk 0:00:12.9]} 29. Be2 {[%clk 0:01:24.2]}
29... Rb8 {[%clk 0:00:06.9]} 30. Qa4 {[%clk 0:01:23.2]} 30... Bc6 {[%clk
0:00:05.5]} 31. Qa2 {[%clk 0:01:18.5]} 31... Bb5 {[%clk 0:00:05.8]} 32. Bxb5
{[%clk 0:01:12.1]} 32... Rxb5 {[%clk 0:00:06]} 33. Rf2 {[%clk 0:01:12.4]} 33...
a5 {[%clk 0:00:05.9]} 34. Re2 {[%clk 0:01:12.2]} 34... Ra8 {[%clk 0:00:05.6]}
35. Qc4 {[%clk 0:01:11.4]} 35... Qb6 {[%clk 0:00:05.4]} 36. Bc3 {[%clk
0:01:09.7]} 36... Bb4 {[%clk 0:00:05.3]} 37. Rc1 {[%clk 0:01:06.8]} 37... Bxc3
{[%clk 0:00:05.4]} 38. Qxc3 {[%clk 0:01:07.7]} 38... g6 {[%clk 0:00:05.6]} 39.
Qc2 {[%clk 0:01:06.8]} 39... a4 {[%clk 0:00:05.7]} 40. Qxe4 {[%clk 0:01:02.6]}
40... Rb8 {[%clk 0:00:06.2]} 41. Rcc2 {[%clk 0:01:00.3]} 41... Rb3 {[%clk
0:00:06.5]} 42. Kh2 {[%clk 0:00:57.5]} 42... Qb5 {[%clk 0:00:06.8]} 43. Qe5
{[%clk 0:00:55.3]} 43... Qd3 {[%clk 0:00:06.4]} 44. Kg2 {[%clk 0:00:48.4]} 44...
Qd1 {[%clk 0:00:06.5]} 45. d5 {[%clk 0:00:37.6]} 45... a3 {[%clk 0:00:06.6]} 46.
bxa3 {[%clk 0:00:37.7]} 46... Rb1 {[%clk 0:00:06.8]} 47. Kg3 {[%clk 0:00:37.1]}
47... Qg1+ {[%clk 0:00:06.4]} 48. Kh4 {[%clk 0:00:37.7]} 48... Qf1 {[%clk
0:00:06]} 49. Kg5 {[%clk 0:00:36.5]} 49... R1b6 {[%clk 0:00:03.5]} 50. Kh4
{[%clk 0:00:24.3]} 50... Rd8 {[%clk 0:00:03.2]} 51. Qc7 {[%clk 0:00:21.5]} 51...
Rbd6 {[%clk 0:00:03.3]} 52. Rcd2 {[%clk 0:00:20.7]} 52... Rxd5 {[%clk
0:00:02.7]} 53. Rxd5 {[%clk 0:00:17.2]} 53... Rxd5 {[%clk 0:00:03.3]} 54. Qc8+
{[%clk 0:00:17.5]} 54... Kg7 {[%clk 0:00:03.7]} 55. Qc3+ {[%clk 0:00:18.1]}
55... Kg8 {[%clk 0:00:04.2]} 56. Rb2 {[%clk 0:00:15.6]} 56... Rd8 {[%clk
0:00:04.3]} 57. Kg5 {[%clk 0:00:13]} 57... Qd1 {[%clk 0:00:03.7]} 58. Kh6 {[%clk
0:00:11.1]} 58... Qd6 {[%clk 0:00:03.3]} 59. Qg7# {[%clk 0:00:11.2]} 1-0

[Event "Early-Titled-Tuesday-Blitz-October-17-2023"]
[Site "Chess.com"]
[Date "2023.10.17"]
[Round "3"]
[White "Shockerlover"]
[Black "mfwagnerpeixoto"]
[Result "0-1"]
[WhiteElo "1948"]
[BlackElo "2336"]
[TimeControl "180+1"]
[EndTime "8:30:18 PDT"]
[Termination "mfwagnerpeixoto won on time"]

1. d4 {[%clk 0:02:48.2]} 1... Nf6 {[%clk 0:02:57.9]} 2. f3 {[%clk 0:02:48.1]}
2... c5 {[%clk 0:02:50.2]} 3. d5 {[%clk 0:02:34.8]} 3... d6 {[%clk 0:02:48.3]}
4. e4 {[%clk 0:02:34.2]} 4... g6 {[%clk 0:02:47.4]} 5. c4 {[%clk 0:02:33.5]}
5... Bg7 {[%clk 0:02:44.9]} 6. Nc3 {[%clk 0:02:33.1]} 6... O-O {[%clk
0:02:44.5]} 7. Be3 {[%clk 0:02:29.8]} 7... e6 {[%clk 0:02:43.7]} 8. Qd2 {[%clk
0:02:25.7]} 8... exd5 {[%clk 0:02:42.4]} 9. cxd5 {[%clk 0:02:17]} 9... Re8
{[%clk 0:02:39.8]} 10. Bd3 {[%clk 0:02:15.1]} 10... a6 {[%clk 0:02:35.8]} 11.
Nge2 {[%clk 0:02:14.7]} 11... b5 {[%clk 0:02:34.8]} 12. O-O {[%clk 0:02:05.7]}
12... Nbd7 {[%clk 0:02:33]} 13. a3 {[%clk 0:02:02.9]} 13... Ne5 {[%clk
0:02:30.7]} 14. Bc2 {[%clk 0:02:02.1]} 14... Nc4 {[%clk 0:02:30.9]} 15. Qc1
{[%clk 0:02:00.9]} 15... b4 {[%clk 0:02:25]} 16. axb4 {[%clk 0:01:50.5]} 16...
cxb4 {[%clk 0:02:25.9]} 17. Na4 {[%clk 0:01:44.1]} 17... Nxd5 {[%clk 0:02:10.6]}
18. Bg5 {[%clk 0:01:31.9]} 18... Bf6 {[%clk 0:01:40.8]} 19. Bxf6 {[%clk
0:01:21.3]} 19... Nxf6 {[%clk 0:01:41.7]} 20. Bb3 {[%clk 0:01:20.8]} 20... Ne5
{[%clk 0:01:33.4]} 21. Nd4 {[%clk 0:01:20]} 21... Bd7 {[%clk 0:01:24.5]} 22. Qg5
{[%clk 0:01:09.4]} 22... Nh5 {[%clk 0:01:03.1]} 23. Qd2 {[%clk 0:01:03.9]} 23...
a5 {[%clk 0:00:51.5]} 24. Rfd1 {[%clk 0:00:57.9]} 24... Qb8 {[%clk 0:00:40.1]}
25. f4 {[%clk 0:00:28.3]} 25... Nc6 {[%clk 0:00:37.2]} 26. Nxc6 {[%clk
0:00:21.8]} 26... Bxc6 {[%clk 0:00:38.1]} 27. Qxd6 {[%clk 0:00:20.2]} 27... Qxd6
{[%clk 0:00:36.1]} 28. Rxd6 {[%clk 0:00:20.9]} 28... Bxe4 {[%clk 0:00:35.1]} 29.
Rd7 {[%clk 0:00:19.2]} 29... Rf8 {[%clk 0:00:30.3]} 30. g3 {[%clk 0:00:18.5]}
30... Bc6 {[%clk 0:00:28.1]} 31. Rc7 {[%clk 0:00:17]} 31... Bxa4 {[%clk
0:00:27.7]} 32. Bxa4 {[%clk 0:00:16.9]} 32... Rad8 {[%clk 0:00:25.2]} 33. Rac1
{[%clk 0:00:16.1]} 33... Rd2 {[%clk 0:00:24.7]} 34. b3 {[%clk 0:00:15.9]} 34...
Rfd8 {[%clk 0:00:20.5]} 35. R7c5 {[%clk 0:00:14]} 35... R2d5 {[%clk 0:00:17.6]}
36. Kf2 {[%clk 0:00:08.6]} 36... Nf6 {[%clk 0:00:16.5]} 37. Kf3 {[%clk 0:00:08]}
37... Rxc5 {[%clk 0:00:14.6]} 38. Rxc5 {[%clk 0:00:07.6]} 38... Rd5 {[%clk
0:00:13.1]} 39. Rc7 {[%clk 0:00:04.6]} 39... Rd2 {[%clk 0:00:11.1]} 40. h3
{[%clk 0:00:03.8]} 40... h5 {[%clk 0:00:07.2]} 41. Rc8+ {[%clk 0:00:02.6]} 41...
Kg7 {[%clk 0:00:07.1]} 42. Rc7 {[%clk 0:00:03.1]} 42... Rd3+ {[%clk 0:00:07]}
43. Kg2 {[%clk 0:00:02.8]} 43... Ne4 {[%clk 0:00:06.9]} 44. g4 {[%clk
0:00:03.1]} 44... hxg4 {[%clk 0:00:06.5]} 45. hxg4 {[%clk 0:00:04]} 45... Rg3+
{[%clk 0:00:07.1]} 46. Kf1 {[%clk 0:00:03.6]} 46... Rxg4 {[%clk 0:00:07.4]} 47.
Be8 {[%clk 0:00:03.9]} 47... Rxf4+ {[%clk 0:00:07.5]} 48. Ke2 {[%clk 0:00:03.8]}
48... Nd6 {[%clk 0:00:06.4]} 49. Bc6 {[%clk 0:00:02.6]} 49... Rf6 {[%clk
0:00:05.6]} 50. Bd5 {[%clk 0:00:02.6]} 50... Nf5 {[%clk 0:00:05.5]} 0-1

[Event "Early-Titled-Tuesday-Blitz-October-17-2023"]
[Site "Chess.com"]
[Date "2023.10.17"]
[Round "3"]
[White "esrosenberg"]
[Black "averageFM"]
[Result "1-0"]
[WhiteElo "2395"]
[BlackElo "2550"]
[TimeControl "180+1"]
[EndTime "8:30:19 PDT"]
[Termination "esrosenberg won by resignation"]

1. d4 {[%clk 0:03:00.9]} 1... Nf6 {[%clk 0:02:57.2]} 2. Nf3 {[%clk 0:03:01.5]}
2... d5 {[%clk 0:02:56.9]} 3. g3 {[%clk 0:03:01.3]} 3... e6 {[%clk 0:02:56.5]}
4. Bg2 {[%clk 0:03:01.8]} 4... Be7 {[%clk 0:02:57.2]} 5. O-O {[%clk 0:03:02.4]}
5... O-O {[%clk 0:02:57.3]} 6. c4 {[%clk 0:03:03.1]} 6... dxc4 {[%clk
0:02:58.2]} 7. Na3 {[%clk 0:03:03.3]} 7... Bxa3 {[%clk 0:02:57.2]} 8. bxa3
{[%clk 0:03:04.2]} 8... Nc6 {[%clk 0:02:56.6]} 9. a4 {[%clk 0:03:01.9]} 9... Nb4
{[%clk 0:02:47.8]} 10. Ba3 {[%clk 0:02:56.6]} 10... a5 {[%clk 0:02:47.1]} 11.
Ne5 {[%clk 0:02:47.1]} 11... c3 {[%clk 0:02:39.6]} 12. e3 {[%clk 0:02:35.7]}
12... Nfd5 {[%clk 0:02:23.9]} 13. Qb3 {[%clk 0:02:35.1]} 13... f5 {[%clk
0:02:15.9]} 14. Rfd1 {[%clk 0:02:13]} 14... b6 {[%clk 0:01:55.6]} 15. Rac1
{[%clk 0:02:09.4]} 15... Ba6 {[%clk 0:01:50.9]} 16. Bxd5 {[%clk 0:01:35.2]}
16... exd5 {[%clk 0:01:46]} 17. Bxb4 {[%clk 0:01:34.8]} 17... axb4 {[%clk
0:01:45.2]} 18. Qxb4 {[%clk 0:01:35.4]} 18... Qd6 {[%clk 0:01:32.2]} 19. Qxc3
{[%clk 0:01:32.7]} 19... c5 {[%clk 0:01:29.4]} 20. dxc5 {[%clk 0:01:30.2]} 20...
bxc5 {[%clk 0:01:29.5]} 21. Nd3 {[%clk 0:01:25.7]} 21... Bxd3 {[%clk 0:01:07.6]}
22. Rxd3 {[%clk 0:01:22.4]} 22... c4 {[%clk 0:01:06.5]} 23. Qxc4 {[%clk
0:01:20.9]} 23... dxc4 {[%clk 0:01:06.4]} 24. Rxd6 {[%clk 0:01:21.1]} 24... Rxa4
{[%clk 0:01:06.6]} 25. Rc6 {[%clk 0:01:20.5]} 25... Rxa2 {[%clk 0:01:05.7]} 26.
R6xc4 {[%clk 0:01:18.2]} 26... Rd8 {[%clk 0:01:03.9]} 27. Rc8 {[%clk 0:01:17.8]}
27... Rxc8 {[%clk 0:01:02.9]} 28. Rxc8+ {[%clk 0:01:17.4]} 28... Kf7 {[%clk
0:01:03.8]} 29. Rc6 {[%clk 0:01:17.1]} 29... h5 {[%clk 0:01:03.6]} 30. h4 {[%clk
0:01:17]} 30... g6 {[%clk 0:01:02.5]} 31. Kg2 {[%clk 0:01:17.5]} 31... Rb2
{[%clk 0:01:02]} 32. Kf3 {[%clk 0:01:17.7]} 32... Ra2 {[%clk 0:01:02.4]} 33. Rb6
{[%clk 0:01:10.1]} 33... Rc2 {[%clk 0:01:01.4]} 34. Kg2 {[%clk 0:01:06.6]} 34...
Ra2 {[%clk 0:01:00.7]} 35. Rd6 {[%clk 0:01:01.4]} 35... Rb2 {[%clk 0:00:59.7]}
36. Kf1 {[%clk 0:01:02.1]} 36... Ra2 {[%clk 0:00:59.3]} 37. Ke1 {[%clk
0:01:02.7]} 37... Rb2 {[%clk 0:00:58.8]} 38. Rd2 {[%clk 0:01:03.4]} 38... Rb3
{[%clk 0:00:58.9]} 39. Ke2 {[%clk 0:01:02.9]} 39... Ke6 {[%clk 0:00:59.2]} 40.
Kf3 {[%clk 0:01:01.9]} 40... Ke5 {[%clk 0:00:57.2]} 41. Ra2 {[%clk 0:01:00]}
41... Rc3 {[%clk 0:00:56.2]} 42. Ra6 {[%clk 0:00:59.2]} 42... f4 {[%clk
0:00:47]} 43. Rxg6 {[%clk 0:00:55.5]} 43... fxe3 {[%clk 0:00:45.2]} 44. fxe3
{[%clk 0:00:54.7]} 44... Kf5 {[%clk 0:00:45.4]} 45. Rg5+ {[%clk 0:00:54.9]}
45... Kf6 {[%clk 0:00:45.5]} 46. Rxh5 {[%clk 0:00:55.6]} 46... Kg6 {[%clk
0:00:46.3]} 47. Rg5+ {[%clk 0:00:56.1]} 47... Kh6 {[%clk 0:00:47.2]} 48. Kf4
{[%clk 0:00:54.7]} 48... Kh7 {[%clk 0:00:45.7]} 49. g4 {[%clk 0:00:50.4]} 49...
Rc1 {[%clk 0:00:46.6]} 50. h5 {[%clk 0:00:49.3]} 50... Rf1+ {[%clk 0:00:47.5]}
51. Ke4 {[%clk 0:00:48.9]} 51... Kh6 {[%clk 0:00:47.9]} 52. Rg6+ {[%clk
0:00:49.2]} 52... Kh7 {[%clk 0:00:48.2]} 53. Ke5 {[%clk 0:00:49.2]} 53... Rf3
{[%clk 0:00:47.3]} 54. e4 {[%clk 0:00:49.6]} 54... Rf8 {[%clk 0:00:48.2]} 55. g5
{[%clk 0:00:46.9]} 55... Rf1 {[%clk 0:00:47.8]} 56. Ke6 {[%clk 0:00:42.1]} 56...
Rh1 {[%clk 0:00:47.6]} 57. Rh6+ {[%clk 0:00:41.2]} 57... Kg7 {[%clk 0:00:47.3]}
58. e5 {[%clk 0:00:38.2]} 58... Ra1 {[%clk 0:00:47.4]} 59. Rg6+ {[%clk
0:00:37.6]} 59... Kh7 {[%clk 0:00:47.1]} 60. Rf6 {[%clk 0:00:37.4]} 60... Ra6+
{[%clk 0:00:43.4]} 61. Kf5 {[%clk 0:00:37.4]} 61... Ra7 {[%clk 0:00:43.6]} 62.
g6+ {[%clk 0:00:35.1]} 62... Kg8 {[%clk 0:00:40.6]} 63. Rf7 {[%clk 0:00:35.2]}
63... Ra1 {[%clk 0:00:37.6]} 64. Kf6 {[%clk 0:00:30.3]} 64... Rf1+ {[%clk
0:00:35.9]} 65. Ke7 {[%clk 0:00:30.5]} 65... Rh1 {[%clk 0:00:35.4]} 66. Rh7
{[%clk 0:00:26]} 66... Re1 {[%clk 0:00:32.2]} 67. e6 {[%clk 0:00:26.1]} 67...
Rd1 {[%clk 0:00:30.5]} 68. h6 {[%clk 0:00:23.7]} 68... Re1 {[%clk 0:00:19.5]}
69. Rg7+ {[%clk 0:00:23.2]} 69... Kh8 {[%clk 0:00:19.3]} 70. Rf7 {[%clk
0:00:23.2]} 1-0

[Event "Early-Titled-Tuesday-Blitz-October-17-2023"]
[Site "Chess.com"]
[Date "2023.10.17"]
[Round "3"]
[White "bazar-wokzal"]
[Black "supereagles1201"]
[Result "1-0"]
[WhiteElo "2567"]
[BlackElo "2363"]
[TimeControl "180+1"]
[EndTime "8:30:19 PDT"]
[Termination "bazar-wokzal won on time"]

1. e4 {[%clk 0:03:00.9]} 1... d6 {[%clk 0:02:57.6]} 2. f4 {[%clk 0:03:00.5]}
2... Nf6 {[%clk 0:02:56.9]} 3. Nc3 {[%clk 0:02:59.7]} 3... d5 {[%clk 0:02:57.5]}
4. e5 {[%clk 0:02:59.3]} 4... d4 {[%clk 0:02:57.7]} 5. Nce2 {[%clk 0:02:58]}
5... Nd5 {[%clk 0:02:55.8]} 6. Nxd4 {[%clk 0:02:55.4]} 6... Nxf4 {[%clk
0:02:55.7]} 7. Ngf3 {[%clk 0:02:55.5]} 7... c5 {[%clk 0:02:54.1]} 8. Bb5+ {[%clk
0:02:54.4]} 8... Bd7 {[%clk 0:02:49.1]} 9. e6 {[%clk 0:02:53.7]} 9... Nxe6
{[%clk 0:02:33.3]} 10. Nxe6 {[%clk 0:02:52.4]} 10... fxe6 {[%clk 0:02:31.9]} 11.
Qe2 {[%clk 0:02:51.4]} 11... Nc6 {[%clk 0:02:23.3]} 12. O-O {[%clk 0:02:49.3]}
12... Nd4 {[%clk 0:02:10]} 13. Nxd4 {[%clk 0:02:46]} 13... cxd4 {[%clk 0:02:10]}
14. Qxe6 {[%clk 0:02:39.1]} 14... Bxb5 {[%clk 0:01:57.2]} 15. Qf7+ {[%clk
0:02:39.3]} 15... Kd7 {[%clk 0:01:56.6]} 16. Qd5+ {[%clk 0:02:40.2]} 16... Kc7
{[%clk 0:01:46.1]} 17. Qxb5 {[%clk 0:02:39.8]} 17... d3 {[%clk 0:01:35.7]} 18.
Rf4 {[%clk 0:02:04.2]} 18... a6 {[%clk 0:01:32.7]} 19. Qc4+ {[%clk 0:01:51.6]}
19... Kb8 {[%clk 0:01:32.5]} 20. b3 {[%clk 0:01:48.4]} 20... e5 {[%clk
0:01:22.3]} 21. Re4 {[%clk 0:01:47.9]} 21... Qc7 {[%clk 0:01:08.6]} 22. Qxd3
{[%clk 0:01:35.4]} 22... Bc5+ {[%clk 0:01:06.6]} 23. Kh1 {[%clk 0:01:35.4]}
23... Rd8 {[%clk 0:00:53.3]} 24. Qe2 {[%clk 0:01:27.7]} 24... Ka7 {[%clk
0:00:38.3]} 25. Bb2 {[%clk 0:01:25.8]} 25... Bd4 {[%clk 0:00:33.3]} 26. c3
{[%clk 0:01:20]} 26... Bb6 {[%clk 0:00:30.3]} 27. Rxe5 {[%clk 0:01:15.7]} 27...
Rf8 {[%clk 0:00:28.1]} 28. d4 {[%clk 0:01:15.2]} 28... Rf7 {[%clk 0:00:25.8]}
29. Re1 {[%clk 0:01:13.7]} 29... Raf8 {[%clk 0:00:24.4]} 30. Ba3 {[%clk
0:00:58.3]} 30... Qxc3 {[%clk 0:00:24.1]} 31. Bxf8 {[%clk 0:00:53.7]} 31... Rxf8
{[%clk 0:00:22.5]} 32. Re7 {[%clk 0:00:46.1]} 32... Qxd4 {[%clk 0:00:19.9]} 33.
Qe4 {[%clk 0:00:40.4]} 33... Qxe4 {[%clk 0:00:15.1]} 34. R7xe4 {[%clk
0:00:39.8]} 34... Rf2 {[%clk 0:00:15]} 35. R4e2 {[%clk 0:00:39.7]} 35... Rf4
{[%clk 0:00:15]} 36. g3 {[%clk 0:00:39.4]} 36... Rd4 {[%clk 0:00:13.1]} 37. Kg2
{[%clk 0:00:38.9]} 37... h5 {[%clk 0:00:13.2]} 38. Kh3 {[%clk 0:00:38.7]} 38...
g5 {[%clk 0:00:12.4]} 39. Re5 {[%clk 0:00:36.6]} 39... g4+ {[%clk 0:00:11.1]}
40. Kg2 {[%clk 0:00:36.8]} 40... Rd2+ {[%clk 0:00:10.9]} 41. R1e2 {[%clk
0:00:37.3]} 41... Rd1 {[%clk 0:00:10.2]} 42. h3 {[%clk 0:00:32.9]} 42... Rg1+
{[%clk 0:00:09.8]} 43. Kh2 {[%clk 0:00:33.2]} 43... gxh3 {[%clk 0:00:08.8]} 44.
Kxh3 {[%clk 0:00:32.5]} 44... Rh1+ {[%clk 0:00:08.9]} 45. Kg2 {[%clk 0:00:32.5]}
45... Rg1+ {[%clk 0:00:08.6]} 46. Kf3 {[%clk 0:00:32.5]} 46... Bc7 {[%clk
0:00:07.3]} 47. Rxh5 {[%clk 0:00:29]} 47... Rxg3+ {[%clk 0:00:06.7]} 48. Ke4
{[%clk 0:00:28.9]} 48... Bb6 {[%clk 0:00:05.5]} 49. Rh7 {[%clk 0:00:23.6]} 49...
Rg4+ {[%clk 0:00:05.5]} 50. Kd3 {[%clk 0:00:22.9]} 50... Rb4 {[%clk 0:00:05.2]}
51. Ree7 {[%clk 0:00:20.5]} 51... Bc5 {[%clk 0:00:05.3]} 52. Rc7 {[%clk
0:00:20.3]} 52... Bf2 {[%clk 0:00:03.7]} 53. Rc4 {[%clk 0:00:19.7]} 53... Rb5
{[%clk 0:00:02.9]} 54. Rf7 {[%clk 0:00:20.4]} 54... Bg1 {[%clk 0:00:02.8]} 55.
Kc2 {[%clk 0:00:19.2]} 55... Bb6 {[%clk 0:00:02.4]} 56. Re4 {[%clk 0:00:17.7]}
56... Bc5 {[%clk 0:00:02.6]} 57. Rh4 {[%clk 0:00:16.4]} 57... Bg1 {[%clk
0:00:01.8]} 58. Rhh7 {[%clk 0:00:16.3]} 58... Be3 {[%clk 0:00:02.1]} 59. a4
{[%clk 0:00:15.9]} 59... Rb6 {[%clk 0:00:02.3]} 60. Re7 {[%clk 0:00:15.5]} 60...
Rb4 {[%clk 0:00:01.6]} 61. Rxe3 {[%clk 0:00:15]} 1-0

[Event "Early-Titled-Tuesday-Blitz-October-17-2023"]
[Site "Chess.com"]
[Date "2023.10.17"]
[Round "3"]
[White "Chessdreamer2020"]
[Black "Dewarfd"]
[Result "0-1"]
[WhiteElo "2516"]
[BlackElo "2197"]
[TimeControl "180+1"]
[EndTime "8:30:22 PDT"]
[Termination "Dewarfd won on time"]

1. e4 {[%clk 0:02:00.3]} 1... e5 {[%clk 0:02:57.2]} 2. Nc3 {[%clk 0:01:58.3]}
2... Nf6 {[%clk 0:02:54.5]} 3. Nf3 {[%clk 0:01:57]} 3... Nc6 {[%clk 0:02:54.7]}
4. d4 {[%clk 0:01:57.2]} 4... exd4 {[%clk 0:02:54.5]} 5. Nxd4 {[%clk 0:01:58.1]}
5... Bb4 {[%clk 0:02:54.4]} 6. Nxc6 {[%clk 0:01:58.7]} 6... bxc6 {[%clk
0:02:54.6]} 7. Bd3 {[%clk 0:01:59.6]} 7... O-O {[%clk 0:02:55.2]} 8. O-O {[%clk
0:02:00]} 8... d5 {[%clk 0:02:55.6]} 9. exd5 {[%clk 0:01:59.9]} 9... cxd5 {[%clk
0:02:56.5]} 10. h3 {[%clk 0:02:00.4]} 10... c5 {[%clk 0:02:53.7]} 11. Bg5 {[%clk
0:01:59]} 11... Be6 {[%clk 0:02:34.5]} 12. Qf3 {[%clk 0:01:56.3]} 12... Bxc3
{[%clk 0:02:28.7]} 13. bxc3 {[%clk 0:01:56]} 13... c4 {[%clk 0:02:27.7]} 14. Bf5
{[%clk 0:01:49.2]} 14... Qd6 {[%clk 0:02:21.9]} 15. Bxf6 {[%clk 0:01:44.3]}
15... gxf6 {[%clk 0:02:09.5]} 16. Rad1 {[%clk 0:01:42]} 16... Qe5 {[%clk
0:02:02.2]} 17. Bxe6 {[%clk 0:01:41.9]} 17... fxe6 {[%clk 0:02:02.4]} 18. Rfe1
{[%clk 0:01:42.2]} 18... Qf5 {[%clk 0:01:45.4]} 19. Qxf5 {[%clk 0:01:41.4]}
19... exf5 {[%clk 0:01:46.3]} 20. Rxd5 {[%clk 0:01:42.3]} 20... Rad8 {[%clk
0:01:45.8]} 21. Red1 {[%clk 0:01:33]} 21... Rde8 {[%clk 0:01:31.6]} 22. R1d2
{[%clk 0:01:17.4]} 22... Re5 {[%clk 0:01:27.2]} 23. R5d4 {[%clk 0:01:13.2]}
23... Rc8 {[%clk 0:01:25.9]} 24. Rd8+ {[%clk 0:01:12.7]} 24... Rxd8 {[%clk
0:01:26]} 25. Rxd8+ {[%clk 0:01:13.6]} 25... Kf7 {[%clk 0:01:26.3]} 26. Rd7+
{[%clk 0:01:14.1]} 26... Kg6 {[%clk 0:01:19.9]} 27. Rxa7 {[%clk 0:01:13.8]}
27... Re1+ {[%clk 0:01:19.2]} 28. Kh2 {[%clk 0:01:13.6]} 28... Re2 {[%clk
0:01:20.1]} 29. Kg3 {[%clk 0:01:02.5]} 29... Rxc2 {[%clk 0:01:20.1]} 30. Ra3
{[%clk 0:01:02.9]} 30... f4+ {[%clk 0:01:18.1]} 31. Kf3 {[%clk 0:00:53.7]} 31...
f5 {[%clk 0:01:18.5]} 32. h4 {[%clk 0:00:37.8]} 32... Kh5 {[%clk 0:01:17.5]} 33.
Ra7 {[%clk 0:00:31.7]} 33... h6 {[%clk 0:01:07.2]} 34. Ra6 {[%clk 0:00:29.4]}
34... Rxc3+ {[%clk 0:01:00.8]} 35. Kxf4 {[%clk 0:00:29.4]} 35... Rc2 {[%clk
0:01:01.2]} 36. Kf3 {[%clk 0:00:19.5]} 36... Rc3+ {[%clk 0:00:59]} 37. Kf4
{[%clk 0:00:19]} 37... Rc2 {[%clk 0:00:59.8]} 38. f3 {[%clk 0:00:16.9]} 38...
Rxg2 {[%clk 0:00:59.3]} 39. Kxf5 {[%clk 0:00:16.4]} 39... Rf2 {[%clk 0:00:36.4]}
40. Kf4 {[%clk 0:00:15.7]} 40... c3 {[%clk 0:00:33]} 41. Ke3 {[%clk 0:00:11]}
41... Rb2 {[%clk 0:00:25.7]} 42. a4 {[%clk 0:00:06.9]} 42... Kxh4 {[%clk
0:00:16.1]} 43. Rxh6+ {[%clk 0:00:05.9]} 43... Kg5 {[%clk 0:00:16.3]} 44. Rc6
{[%clk 0:00:04.5]} 44... Ra2 {[%clk 0:00:15]} 45. Rc4 {[%clk 0:00:03.1]} 45...
c2 {[%clk 0:00:11.5]} 46. Kd2 {[%clk 0:00:03.4]} 46... Ra3 {[%clk 0:00:10.8]}
47. Kxc2 {[%clk 0:00:02]} 47... Rxf3 {[%clk 0:00:10.7]} 48. Kb2 {[%clk
0:00:02.4]} 48... Kf5 {[%clk 0:00:10.5]} 49. a5 {[%clk 0:00:02.5]} 49... Ke6
{[%clk 0:00:10.7]} 0-1